Cogmind - Beta 15 @@@ ROGUE MODE // 2025.05.16 @ 20:58:21 Player: winnking222 Result: Destroyed by XU-5W4(j) with Overtuned Pulse Rifle Performance ------------- Evolutions (0) 0 Regions Visited (3) 600 Robots Destroyed (35) 175 Value Destroyed (1173) 1173 Prototype IDs (17) 340 Alien Tech Used (0) 0 Bonus (800) 800 TOTAL SCORE: 3088 Bonus ------- Registered with UFD 300 Met Optimus in HQ 500 Cogmind --------- Core Integrity 0/250 Matter 225/300 Energy 247/250 System Corruption 0% Temperature Warm (122) Movement Walking (100) Location -8/Scraptown Parts ------- > --- POWER (1) -------- Ion Engine > --- PROPULSION (2) --- Overtuned Titanium Leg Overtuned Titanium Leg > --- UTILITY (2) ------ Large Storage Unit > --- WEAPON (2) ------- Barrage Gun Heavy Machine Gun > --- INVENTORY (15) --- Overtuned Titanium Leg Scrap Suit Huge Storage Unit Matter Compressor (250) 0b10 Decoder Chip [Looter] Weapon Cycler Hardened Heavy Armor Plating A0-MCA's Component Scanner System Spiker (6) CPS Tube (2) Vortex Trap DRS Beacon (Ready) Peak State ------------ > --- POWER ------------ Ion Engine > --- PROPULSION ------- VSS Leg Improved Titanium Leg > --- UTILITY ---------- Large Storage Unit Improved Light Armor Plating > --- WEAPON ----------- Barrage Gun Heavy Machine Gun > --- INVENTORY -------- Ion Engine Aluminum Leg Scrap Suit Huge Storage Unit Matter Compressor 0b10 Decoder Chip [Looter] Weapon Cycler Hardened Heavy Armor Plating A0-MCA's Component Scanner System Spiker CPS Tube Vortex Trap DRS Beacon [Rating: 26] Favorites ----------- Power Ion Engine Engine Ion Engine Propulsion Aluminum Leg Treads Light Treads Leg Aluminum Leg Wheel Subdweller Monowheel Utility Medium Storage Unit Storage Medium Storage Unit Protection Core Shielding Weapon EM Pulse Gun Energy Gun EM Pulse Gun Ballistic Gun Subdweller Machine Gun Ballistic Cannon Light Cannon Build | -11 -10 -10 -8 ------- Run | Yrd Mat Sub Scr Slots Evolved . | . . . . Power . | . . . . Propulsion . | . . . . Utility . | . . . . Weapon . | . . . . Parts Attached 33 | 6 8 7 12 Power 2 | 1 . 1 . Engine 2 | 1 . 1 . Core . | . . . . Reactor . | . . . . Propulsion 12 | 2 2 3 5 Treads 2 | 2 . . . Leg 7 | . 2 1 4 Wheel 3 | . . 2 1 Hover . | . . . . Flight . | . . . . Utility 7 | . 2 . 5 Device . | . . . . Storage 5 | . 1 . 4 Processor . | . . . . Hackware . | . . . . Protection 2 | . 1 . 1 Artifact . | . . . . Weapon 12 | 3 4 3 2 Energy Gun 6 | 2 2 2 . Energy Cannon . | . . . . Ballistic Gun 5 | 1 1 1 2 Ballistic Cannon 1 | . 1 . . Launcher . | . . . . Special Weapon . | . . . . Impact Weapon . | . . . . Slashing Weapon . | . . . . Piercing Weapon . | . . . . Special Melee Weapon . | . . . . Unidentified Prototypes . | . . . . Parts Lost 11 | . 4 6 1 Power 1 | . . 1 . Propulsion 4 | . 2 2 . Utility 1 | . . . 1 Weapon 5 | . 2 3 . Highest Loss Streak 4 | . 4 4 1 To Critical Strikes . | . . . . Average Backups 8 | 4 7 9 8 Power 2 | . 1 2 2 Propulsion 1 | 2 2 1 . Utility 4 | . 2 3 4 Weapon 1 | . 1 2 1 Tool/Special . | . . . . Unused Backups 20 | . . 3 17 Power 4 | . . 1 3 Propulsion 1 | . . 1 . Utility 11 | . . 1 10 Weapon 2 | . . . 2 Tool/Special 2 | . . . 2 Average Slot Usage (%) 96 | . 93 99 95 Engine 13 | . 14 13 14 Treads 1 | . 13 . . Leg 17 | . 13 19 17 Wheel 8 | . . 8 10 Storage 14 | . 10 14 15 Protection 11 | . 12 14 10 Energy Gun 13 | . 22 18 10 Ballistic Gun 12 | . 2 9 16 Peak Build Rating 26 | 5 8 10 26 Average Rating 11 | 3 6 9 12 On Entrance 5 | . 5 8 10 Naked Turns . | . . . . Heaviest Build 36 | 9 21 22 36 Greatest Support 40 | 40 40 20 39 Greatest Overweight (x) 2 | . 1 1 2 Average Overweight (x) . | . . . 1 Largest Inventory Capacity 25 | 5 10 10 25 Average Capacity 10 | 5 8 10 10 Most Carried 15 | 5 10 10 15 Average Carried 9 | 4 7 9 10 Final Capacity 15 | 5 10 10 15 Final Carried 14 | 5 10 10 14 Class Distribution -------------------- 59% | Scavenger-Mutant 40% | Mutant Dominant Class ---------------- Mutant | -10/Materials Scavenger-Mutant | -10/Subcaves Scavenger-Mutant | -8/Scraptown Resources | -11 -10 -10 -8 ----------- Run | Yrd Mat Sub Scr Matter Collected 1080 | 260 310 79 431 Remotely . | . . . . Salvage Created 1662 | 100 949 404 209 Parts 92 | 2 56 28 6 Haulers Intercepted 2 | . 2 . . Recyclers Shooed . | . . . . Parts Field Recycled . | . . . . Retrieved Matter . | . . . . Parts Self-Destructed 13 | . . 13 . Prevented . | . . . . Kills | -11 -10 -10 -8 ------- Run | Yrd Mat Sub Scr Combat Hostiles Destroyed 28 | . 18 7 3 Guns 21 | . 13 5 3 Cannons 2 | . 2 . . AOE 2 | . 2 . . Classes Destroyed 9 | 1 5 1 2 Worker 1 | . 1 . . Builder 1 | . 1 . . Hauler 2 | . 2 . . Recycler 1 | 1 . . . Watcher 2 | . 2 . . Grunt 18 | . 18 . . Subdweller 7 | . . 7 . Ranger 2 | . . . 2 Scrapper 1 | . . . 1 Best Kill Streak 9 | 1 9 2 2 Combat Bots Only 7 | . 7 2 2 Max Kills in Single Turn 3 | 1 3 1 1 Gunslinging . | . . . . Exploded 1 | . 1 . . Melee . | . . . . Uniques/NPCs Destroyed . | . . . . Combat | -11 -10 -10 -8 -------- Run | Yrd Mat Sub Scr Hostile Shots Fired 169 | . 97 46 26 Missed 61 | . 39 15 7 Hits 108 | . 58 31 19 Projectile 108 | . 58 31 19 Damage Taken 1613 | . 703 645 265 Core 256 | . 92 116 48 Absorbed by Shields . | . . . . Redirected to Shielding 45 | . 21 24 . Core Remaining (%) 100 | 100 . . . Volleys Fired 130 | 5 66 40 19 Largest 2 | 2 2 2 2 Hottest 80 | 80 80 80 58 Shots Fired 257 | 10 131 78 38 Gun 245 | 10 119 78 38 Cannon 12 | . 12 . . Launcher . | . . . . Special . | . . . . Kinetic 77 | . 27 12 38 Thermal . | . . . . Explosive . | . . . . Electromagnetic 180 | 10 104 66 . Robot Hit Streak 13 | 6 8 13 5 Robot Miss Streak 5 | 2 5 3 5 Penetration Max . | . . . . Secondary Targets 3 | . 1 . 2 Max Gunslinging Chain 1 | . 1 . 1 Shots Hit Robots 157 | 7 76 54 20 Core Hits 63 | 2 41 15 5 Critical Kills . | . . . . Critical Parts Destroyed . | . . . . Critical Strikes . | . . . . Melee Attacks . | . . . . Impact . | . . . . Slashing . | . . . . Piercing . | . . . . Sneak Attacks . | . . . . Combat Hostiles . | . . . . Follow-up Attacks . | . . . . Damage Inflicted 2661 | 91 1457 708 405 Guns 2198 | 91 1032 670 405 Cannons 164 | . 164 . . Explosions 290 | . 252 38 . Melee . | . . . . Ramming 9 | . 9 . . Kinetic 849 | . 274 170 405 Thermal 290 | . 252 38 . Explosive . | . . . . Electromagnetic 1513 | 91 922 500 . Impact . | . . . . Slashing . | . . . . Piercing . | . . . . Highest Corruption 1 | . 1 1 . Average Corruption 1 | . 1 1 . Corruption Purged . | . . . . Corruption Blocked . | . . . . Effects 18 | . 3 15 . Message Errors 2 | . . 2 . Matter Fused 3 | . 1 2 . Heat Flow Errors 3 | . . 3 . Energy Discharges 3 | . 1 2 . Data Loss (minor) 5 | . . 5 . Misfires 2 | . 1 1 . Overload Shots . | . . . . Overflow Damage . | . . . . Projectiles . | . . . . Explosions . | . . . . Melee . | . . . . Knockbacks 3 | . 3 . . Impact . | . . . . Kinetic 3 | . 3 . . Secondary . | . . . . Self-Inflicted Damage . | . . . . Shots . | . . . . Rammed 5 | . 5 . . Targets Rammed 7 | . 7 . . Kicked 1 | . 1 . . Crushed 1 | . 1 . . Highest Temperature 228 | 90 194 228 128 Average Temperature 58 | 47 60 110 38 Received Heat Transfer 636 | . 393 147 96 Siege Activations . | . . . . Martial Activations . | . . . . Shielding Activations . | . . . . Robots Disrupted 1 | . 1 . . Combat Hostiles 1 | . 1 . . Robots Corrupted 3 | . 1 2 . Combat Hostiles 3 | . 1 2 . Parts Fried 6 | . 2 4 . Impact Corruptions . | . . . . Robots Melted . | . . . . Combat Hostiles . | . . . . Parts Melted 2 | . . 2 . Heat Transferred 450 | . 400 50 . Parts Sabotaged . | . . . . Parts Stolen . | . . . . Parts Stripped . | . . . . Power Chain Reactions 4 | . 3 1 . Alert | -11 -10 -10 -8 ------- Run | Yrd Mat Sub Scr Maximum Alert Level . | . . . . Low Security (%) 100 | 100 100 . . Level 1 . | . . . . Level 2 . | . . . . Level 3 . | . . . . Level 4 . | . . . . Level 5 . | . . . . High Security . | . . . . Max Security . | . . . . Peak Influence 196 | 5 196 . . Initial . | . . . . Average 112 | . 123 . . Influence Increases 571 | 5 566 . . Destroy 0b10 Robot/C 360 | . 360 . . Destroy 0b10 Robot/NC 35 | 5 30 . . Destroy Leader 88 | . 88 . . Successful Hack 14 | . 14 . . Disable Machine 45 | . 45 . . Destroy Structure 14 | . 14 . . Lose Combat Pursuer 15 | . 15 . . Influence Decreases 571 | 5 394 172 . Entered New Map 84 | . . 84 . Time Decay 447 | 5 354 88 . Lost Part 40 | . 40 . . Squads Dispatched 5 | . 5 . . Investigation 2 | . 2 . . Extermination . | . . . . Reinforcement 3 | . 3 . . Assault . | . . . . Garrison . | . . . . Intercept . | . . . . Searches Triggered . | . . . . Construction Impeded . | . . . . Haulers Reinforced . | . . . . Active Scanning Responses . | . . . . Cargo Convoy Interrupts . | . . . . Stealth | -11 -10 -10 -8 --------- Run | Yrd Mat Sub Scr Distress Signals 1 | . 1 . . Communications Jammed . | . . . . Distress Signals . | . . . . Times Spotted 55 | . 30 8 17 Peak Tracking Total 4 | . 4 2 4 Tactical Retreats 4 | . 1 . 3 Traps | -11 -10 -10 -8 ------- Run | Yrd Mat Sub Scr Traps Triggered 1 | . 1 . . Indirectly . | . . . . Trap Hack Attempts . | . . . . Triggered . | . . . . Disarmed . | . . . . Reprogrammed . | . . . . Reused . | . . . . Traps Extracted . | . . . . Installed . | . . . . Triggered . | . . . . Most Traps Carried 1 | . . . 1 Machines | -11 -10 -10 -8 ---------- Run | Yrd Mat Sub Scr Machines Disabled 4 | . 3 . 1 Max in Single Turn 1 | . 1 . 1 Machines Repaired . | . . . . Machines Dismantled . | . . . . Machines Sabotaged . | . . . . Overloaded Fab Kills . | . . . . Hacking | -11 -10 -10 -8 --------- Run | Yrd Mat Sub Scr Machines Accessed 8 | . 3 1 4 Terminals 3 | . 3 . . Fabricators . | . . . . Repair Stations . | . . . . Recycling Units . | . . . . Scanalyzers . | . . . . Garrison Access . | . . . . Total Hacks 34 | . 7 4 23 Successful 28 | . 1 4 23 Failed 6 | . 6 . . Catastrophic 1 | . 1 . . Database Lockouts . | . . . . Manual . | . . . . Terminals 7 | . 7 . . Fabricators . | . . . . Repair Stations . | . . . . Recycling Units . | . . . . Scanalyzers . | . . . . Garrison Access . | . . . . Terminal Hacks 28 | . 1 4 23 Record 26 | . . 4 22 Prototype ID Bank 1 | . 1 . . Proto ID Catalog 1 | . . . 1 Fabricator Hacks . | . . . . Repair Station Hacks . | . . . . Recycling Unit Hacks . | . . . . Scanalyzer . | . . . . Garrison Access Hacks . | . . . . Unauthorized Hacks . | . . . . Terminals . | . . . . Fabricators . | . . . . Repair Stations . | . . . . Recycling Units . | . . . . Scanalyzers . | . . . . Garrison Access . | . . . . Data Cores Recovered . | . . . . Used . | . . . . Hacking Detections 2 | . 2 . . Full Trace Events 2 | . 2 . . Feedback Events . | . . . . Feedback Blocked . | . . . . Robot Schematics Acquired . | . . . . Robots Built . | . . . . Authchips . | . . . . Time . | . . . . Total Robot Build Rating . | . . . . Part Schematics Acquired . | . . . . Parts Built . | . . . . Authchips . | . . . . Time . | . . . . Total Part Build Rating . | . . . . Parts Repaired . | . . . . Time . | . . . . Parts Recycled . | . . . . Recycled Matter . | . . . . Retrieved Matter . | . . . . Retrieved Components . | . . . . Parts Scanalyzed . | . . . . Part Schematics Acquired . | . . . . Parts Damaged . | . . . . Bothacking | -11 -10 -10 -8 ------------ Run | Yrd Mat Sub Scr Used RIF Installer . | . . . . Robots Hacked . | . . . . Non-combat . | . . . . Combat . | . . . . Robot Hacks Applied . | . . . . Relay Couplers Released . | . . . . Fabnet Peak Effective % . | . . . . Robots Rewired . | . . . . Allies Hacked . | . . . . Hacks Repelled . | . . . . Allies | -11 -10 -10 -8 -------- Run | Yrd Mat Sub Scr Total Allies . | . . . . Largest Group . | . . . . Highest-Rated Group . | . . . . Highest-Rated Ally . | . . . . Total Orders . | . . . . Ally Attacks . | . . . . Total Damage . | . . . . Kills . | . . . . Allies Corrupted . | . . . . Allies Melted . | . . . . Intel | -11 -10 -10 -8 ------- Run | Yrd Mat Sub Scr Active Infowar (turns) . | . . . . Robot Analysis Total . | . . . . Derelict Logs Recovered 7 | . . 2 5 Drone Launches . | . . . . Drone Recoveries . | . . . . Exploration | -11 -10 -10 -8 ------------- Run | Yrd Mat Sub Scr Turns Passed 6852 | 86 886 1569 4311 Spaces Moved 3832 | 46 447 1104 2235 Core 15 | 15 . . . Treads 206 | 31 175 . . Legs 2076 | . 272 389 1415 Wheels 1535 | . . 715 820 Hover . | . . . . Flight . | . . . . Fastest Speed 50 | 50 120 110 100 Average Speed 160 | 124 145 122 182 Slowest Speed 260 | 160 190 190 260 Overloaded Moves . | . . . . Propulsion Burnouts . | . . . . Robots Hopped . | . . . . Potential Cave-ins . | . . . . Cave-ins Triggered . | . . . . Exploration Rate (%) 60 | 3 96 53 91 Regions Visited 3 Branch Regions 2 Pre-discovered Areas 6 | . . 1 5 Known Exits Taken . | . . . . Unknown Exits Taken 3 | 1 1 1 . Scrap Searched 4 | . . . 4 Spaces Dug . | . . . . Terrain Destroyed 13 | . 13 . . Melee . | . . . . Projectile . | . . . . AOE 13 | . 13 . . Terrain Rammed . | . . . . Walls Destroyed . | . . . . Machines Disabled . | . . . . Actions | -11 -10 -10 -8 --------- Run | Yrd Mat Sub Scr Total 4296 | 65 548 1248 2435 Wait 217 | . 6 85 126 Move 3829 | 45 446 1103 2235 Hop . | . . . . Pick Up 49 | 8 12 9 20 Fast Attach 6 | 2 2 . 2 Attach 24 | 4 6 6 8 Detach 2 | 1 . . 1 Swap 4 | . . 1 3 Drop 28 | . 3 4 21 Fire 130 | 5 66 40 19 Melee . | . . . . Ram . | . . . . Kick 1 | . 1 . . Crush 6 | . 6 . . Escape Stasis . | . . . . Rewire . | . . . . Trap . | . . . . Miscellaneous . | . . . . Route ------- -11/Scrapyard -10/Materials (discovered 6 exits: [*Mat x3] / [*Min x2] / *Sub) -10/Subcaves (discovered 2 exits: [*Mat] / *Scr) -8/Scraptown (discovered 2 exits: *Fac x2) History --------- Turn | Location | Event 11 | -11/Scrapyard | Discovered new exit (range 15) 87 | -11/Scrapyard | Entered Materials 262 | -10/Materials | Destroyed 7 combat bots 303 | -10/Materials | Build established: Mutant 318 | -10/Materials | Discovered new exit (range 7) 468 | -10/Materials | Discovered new exit (range 13) 561 | -10/Materials | Lost 4 parts (2n2w) 704 | -10/Materials | Discovered new exit (range 10) 791 | -10/Materials | Discovered new exit (range 7) 901 | -10/Materials | Discovered new exit (range 13) 961 | -10/Materials | Discovered new exit (range 10) 973 | -10/Materials | Entered Subcaves 974 | -10/Subcaves | Approached by a straggling Scientist 1176 | -10/Subcaves | A swath of the cavern ceiling suddenly collapsed 1289 | -10/Subcaves | A swath of the cavern ceiling suddenly collapsed 1321 | -10/Subcaves | Ambushed by Subdweller buried in earth 1402 | -10/Subcaves | Discovered new exit (range 16) 1475 | -10/Subcaves | Core integrity fell below 50% 1501 | -10/Subcaves | Lost 4 parts (1n3w) 1537 | -10/Subcaves | Learned location of Zion (-7) 1587 | -10/Subcaves | Core integrity fell below 20% 1712 | -10/Subcaves | Scientist uncovered a shortcut to Scraptown 1844 | -10/Subcaves | Build established: Scavenger-Mutant 1847 | -10/Subcaves | Learned Materials security intel 1873 | -10/Subcaves | Visited Clippyterm 1876 | -10/Subcaves | Learned Factory trap positions 2542 | -10/Subcaves | Entered Scraptown 2542 | -8/Scraptown | System corruption cleaned by C-Scrubber 2672 | -8/Scraptown | Visited The Evicted 2684 | -8/Scraptown | Visited Junk Repository 2731 | -8/Scraptown | Visited CPS Storage 3283 | -8/Scraptown | Discovered new exit (range 5) 3436 | -8/Scraptown | Scanned Subdweller tech in exchange for log data 3441 | -8/Scraptown | Learned 8 Factory zone layouts 3444 | -8/Scraptown | Learned Factory stockpile data 3447 | -8/Scraptown | Learned location of 1 exit from Research 3452 | -8/Scraptown | Learned Research garrison access intel 3525 | -8/Scraptown | Visited Assassins FH 3597 | -8/Scraptown | Visited Comm Corps 3701 | -8/Scraptown | Visited Cyclists 3787 | -8/Scraptown | Visited Cave Peace 3886 | -8/Scraptown | Visited UFD Registry 3886 | -8/Scraptown | Registered with UFD as "Cogbot" 3946 | -8/Scraptown | Visited Science Guys 4039 | -8/Scraptown | Visited Junk Repository 4120 | -8/Scraptown | Visited Curators Association 4533 | -8/Scraptown | Visited LU-1G1's Boring Crew 4682 | -8/Scraptown | Visited Scrap Suit Storage 4741 | -8/Scraptown | Visited A0-MCA Data Center 4783 | -8/Scraptown | Visited Infowarlord's Domain 4825 | -8/Scraptown | Visited Derelict Rescue Squad 4843 | -8/Scraptown | Found DRS Beacon 4905 | -8/Scraptown | Visited Cartography Club 4957 | -8/Scraptown | Found Surveybot 17 Chip 5114 | -8/Scraptown | Learned location of Recycling (-8) 5114 | -8/Scraptown | Learned location of Hub_04(d) (-5) 5114 | -8/Scraptown | Learned location of Testing (-2) 5114 | -8/Scraptown | Learned 12 Materials zone layouts 5114 | -8/Scraptown | Learned 8 Factory zone layouts 5114 | -8/Scraptown | Learned 20 Factory zone layouts 5114 | -8/Scraptown | Learned 12 Upper Caves zone layouts 5114 | -8/Scraptown | Learned 4 Armory zone layouts 5114 | -8/Scraptown | Learned location of 3 exits from Factory 5114 | -8/Scraptown | Learned location of 2 exits from Lower Caves 5114 | -8/Scraptown | Learned Storage emergency access door positions 5114 | -8/Scraptown | Learned location of 1 exit from Proximity Caves 5295 | -8/Scraptown | Visited Scrapoid Pod Storage 5365 | -8/Scraptown | Found Scrap Suit 5426 | -8/Scraptown | Given a B rating by A0-MCA 5430 | -8/Scraptown | Found A0-MCA's Component Scanner 5638 | -8/Scraptown | Found Deep Structural Scanner 5965 | -8/Scraptown | Build established: Mutant 6437 | -8/Scraptown | Met Optimus 6437 | -8/Scraptown | Accepted into 0bPrime 6741 | -8/Scraptown | Civil war broke out across Scraptown 6755 | -8/Scraptown | Found System Spiker 6815 | -8/Scraptown | Identified exit to Factory 6832 | -8/Scraptown | Lost 6 allies 6853 | -8/Scraptown | Destroyed by XU-5W4(j) with Overtuned Pulse Rifle Last Messages --------------- 06830_ HV Slug penetrates Machine. 06830_ HV Slug penetrates UN-GVZ(E). 06830_ Bolt penetrates UN-GVZ(E). 06832_ UN-GVZ(E) destroyed. 06832_ Bolt penetrates Machine. 06833_ HG-WYG(h) destroyed. 06834_ Ovr. Titanium Leg recovered from malfunction. 06837_ Penetrated by HV Slug. 06840_ Bolt penetrates Machine. 06840_ Penetrated by HV Slug. 06841_ Penetrated by Bolt. 06842_ 31-N9Z(h) destroyed. 06842_ Switching to secondary target: V2-JBU(h). 06843_ Penetrated by Bolt. 06846_ Bolt penetrates Machine. 06847_ Penetrated by Bolt. 06850_ Destroyed Airjet. 06851_ XU-5W4(j) heat short circuits Mak. Microdissipator Network. 06851_ Slug penetrates XU-5W4(j). 06853_ Imp. Light Armor Plating destroyed. Map ----- +----------------------------------------------------+ | #???????#"""" """"""""""" """"""""""" """"" "" | | #???????#" | | #???????#"! | | #???????#"[! | | #???????#" | | #???#####" | | #???#"""" """""""""""""""""""""""""""" | | #???#"""" """""""""""""""""""""""""""" | | #???#"""" ""###### ################"" | | #???#"""" ""# ##????????#"" | | #???#""" ""# X"#????????#"" | | ###?#""" ""# "" "" ##????????#"" | | ""#"#"""" ""# "" "" X"#??????###"" | | """"#"""" ""# " " ######### #"" | | ""######" !% "" ="" | | ###????#" / "" %"" | | ######### ""# " [! " ######### #"" | | * ""# "" "" ""#??????###"" | | * =%= ""# "" "" ##????????#"" | | %= /%! !!!!""# [=! X"#????????#"" | | / = ==!%!""# !% ##????????#"" | | =%!== "###### ################"" | | *! *! """""""""""""""""""""""""" | | !%*= """" """""" " """""""" | | [=* h[ | | =%! @ x% | | = | | = #""""#" = != [%= [=! | | ! #????#" %*%[ &!% !%* | | #????#"" """"""" "! """"""""" """""" | | ####????#";;;;;j;;######### ########### ###### | | #???????## = "#?# #" "# | | #????????#" !%=%! #?# ##"" ""## | | #????????#&" ""! ""#?# # # ##!" "!## | | #????????#&" ""! ""#?#!!# ! #[[##"" ""## | | #????????# ""#?# !# !!#/!#" "# | | #????????#"" """#?############"" ""## | | #????????#""" """#????????????#[" "]## | | #????????#"" " "#????????????#"" ""## | | #????????#" "" """#???????????#" """ "# | | #????????#""" X """""#???????????#### "=" #### | | #????????#"""""""""""#??????????????#"###"#??# | | #????????#############??????????????###?###??# | | #???????######??############################## | | #???????? ?#"""##"""##"""##"""##"""##" "# | | #????????""""" ## ""##|""##" "##"""##"" ##" # | | #????????""""" | | #????????""""" | | #????????""""" ! | | #????????""""" ##"""##"""##"" ##" "##!! ##"" ## | +----------------------------------------------------+ Best States ------------- Heat Dissipation 25 Energy Generation 10 Energy Capacity 250 Matter Stores 430 Matter Capacity 450 Sight Range 16 Terrain Scan Density 10 Armor Coverage 150 Core Shielding 20 Evasion (%) 55 Recoil Reduction 2 Item Schematics ----------------- None Robot Schematics ------------------ None Fabricated ------------ Nothing Repaired ---------- Nothing Alien Tech Used ----------------- None Achievements -------------- None Challenges ------------ None Game ------ Seed HypercooledThrowingBotcube Manual? 0 Play Time 00:39:23 Cumulative 66.7 hours Start 2025.05.16 @ 16:34:45 End 2025.05.16 @ 20:58:21 Sessions 4 Manual Loads 0 Difficulty Rogue Special Mode None Game No. 120 Rogue 120 Adventurer 0 Explorer 0 Win Type - Total 1 Types 1/0/0/0/0/0/0/0/0/0 Lore% 55 Gallery% 44 Achievement% 41 Wizard Run 0 Options --------- Layout 0 ASCII 0 Keyboard 0 Movement Mouse Keybinds 0 Fullscreen 1 Font 16/SmallcapsGlow Map View 75x55 Zoom Use 0% Tactical HUD 1 Map Filters NONE Filters NONE Steam 1 RUN: 7a999593-7666-43a0-8f3c-8383baf1c989